lending/lending_fUSD_20250516
["ID","MTS","AMOUNT","RATE_DAILY","PERIOD"]
[361254481,1747397435198,-400.0,0.00016438,2]
[361254482,1747397435207,-405.5032393,0.00016438,2]
[361254483,1747397435217,-400.0,0.00016438,2]
[361254484,1747397435226,-400.0,0.00016438,2]
[361254485,1747397435235,-400.0,0.00016438,2]
[361254486,1747397435244,-400.0,0.00016438,2]
[361254487,1747397435254,-400.0,0.00016438,2]
[361254488,1747397435263,-502.78,0.00016438,2]
[361254489,1747397435271,-400.0,0.00016438,2]
[361254490,1747397435281,-463.06,0.00016438,2]
[361254491,1747397435290,-400.0,0.00016438,2]
[361254492,1747397435300,-400.0,0.00016438,2]
[361254493,1747397435309,-400.0,0.00016438,2]
[361254494,1747397435318,-580.57,0.00016438,2]
[361254495,1747397435327,-496.16,0.00016438,2]
[361254496,1747397435337,-400.0,0.00016438,2]
[361254497,1747397435346,-400.0,0.00016438,2]
[361254498,1747397435355,-151.0,0.00016438,2]
[361254499,1747397435364,-151.0,0.00016438,2]
[361254500,1747397435373,-151.0,0.00016438,2]
[361254501,1747397435382,-151.0,0.00016438,2]
[361254502,1747397435392,-151.0,0.00016438,2]
[361254503,1747397435401,-400.0,0.00016438,2]
[361254504,1747397435410,-151.0,0.00016438,2]
[361254505,1747397435419,-400.0,0.00016438,2]
[361254506,1747397435428,-400.0,0.00016438,2]
[361254507,1747397435438,-433.44533755,0.00016438,2]
[361254508,1747397435448,-151.0,0.00016438,2]
[361254509,1747397435457,-519.59,0.00016438,2]
[361254510,1747397435467,-151.0,0.00016438,2]
[361254511,1747397435475,-519.59,0.00016438,2]
[361254512,1747397435485,-400.0,0.00016438,2]
[361254513,1747397435494,-519.59,0.00016438,2]
[361254514,1747397435503,-613.49,0.00016438,2]
[361254515,1747397435512,-519.59,0.00016438,2]
[361254516,1747397435522,-151.0,0.00016438,2]
[361254517,1747397435531,-519.59,0.00016438,2]
[361254518,1747397435541,-519.59,0.00016438,2]
[361254519,1747397435551,-400.0,0.00016438,2]
[361254520,1747397435561,-400.0,0.00016438,2]
[361254521,1747397435570,-400.0,0.00016438,2]
[361254522,1747397435579,-151.0,0.00016438,2]
[361254523,1747397435588,-151.0,0.00016438,2]
[361254524,1747397435598,-151.0,0.00016438,2]
[361254525,1747397435607,-1039.23,0.00016438,2]
[361254526,1747397435617,-400.0,0.00016438,2]
[361254527,1747397435626,-866.72,0.00016438,2]
[361254528,1747397435636,-109.53791612,0.00016438,2]
[361254529,1747397435736,-267.16272844,0.00016432,2]
[361254530,1747397435745,-386.34727156,0.00016432,2]
[361254531,1747397435822,-113.65272844,0.00016432,2]
[361254532,1747397435831,-500.0,0.00016432,2]
[361254533,1747397435840,-28.58897324,0.00016432,2]
[361254534,1747397435852,-471.41102676,0.00016432,2]
[361254535,1747397435862,-1803.27208388,0.00016438,2]
[361254536,1747397435871,-151.0,0.00016438,2]
[361254537,1747397435880,-151.0,0.00016438,2]
[361254538,1747397435890,-157.359873,0.00016438,2]
[361254539,1747397435899,-400.0,0.00016438,2]
[361254540,1747397435909,-504.32102041,0.00016438,2]
[361254541,1747397435922,-400.0,0.00016438,2]
[361254542,1747397435937,-174.91402905,0.00016438,2]
[361254543,1747397435978,-500.0,0.00016432,2]
[361254544,1747397435988,-500.0,0.00016432,2]
[361254545,1747397436000,-500.0,0.00016432,2]
[361254546,1747397436011,-500.0,0.00016432,2]
[361254547,1747397436022,-1204.48597095,0.00016438,2]
[361254548,1747397436040,-252.32958704,0.00016438,2]
[361254549,1747397436056,-606.33,0.00016438,2]
[361254550,1747397436067,-400.0,0.00016438,2]
[361254551,1747397436078,-400.0,0.00016438,2]
[361254552,1747397436088,-400.0,0.00016438,2]
[361254553,1747397436098,-400.0,0.00016438,2]
[361254554,1747397436109,-290.89921453,0.00016438,2]
[361254555,1747397436119,-400.0,0.00016438,2]
[361254556,1747397436129,-400.0,0.00016438,2]
[361254557,1747397436139,-400.0,0.00016438,2]
[361254558,1747397436149,-400.0,0.00016438,2]
[361254559,1747397436159,-400.0,0.00016438,2]
[361254560,1747397436170,-400.0,0.00016438,2]
[361254561,1747397436180,-400.0,0.00016438,2]
[361254562,1747397436190,-400.0,0.00016438,2]
[361254563,1747397436200,-400.0,0.00016438,2]
[361254564,1747397436210,-151.0,0.00016438,2]
[361254565,1747397436221,-151.0,0.00016438,2]
[361254566,1747397436231,-400.0,0.00016438,2]
[361254567,1747397436242,-151.0,0.00016438,2]
[361254568,1747397436252,-400.0,0.00016438,2]
[361254569,1747397436261,-972.42,0.00016438,2]
[361254570,1747397436271,-400.0,0.00016438,2]
[361254571,1747397436281,-400.0,0.00016438,2]
[361254572,1747397436292,-326.64490322,0.00016438,2]
[361254573,1747397436304,-400.0,0.00016438,2]
[361254574,1747397436315,-400.0,0.00016438,2]
[361254575,1747397436325,-400.0,0.00016438,2]
[361254576,1747397436336,-400.0,0.00016438,2]
[361254577,1747397436346,-400.0,0.00016438,2]
[361254578,1747397436357,-400.0,0.00016438,2]
[361254579,1747397436366,-787.39,0.00016438,2]
[361254580,1747397436377,-400.0,0.00016438,2]
[361254581,1747397436388,-151.0,0.00016438,2]
[361254582,1747397436398,-151.0,0.00016438,2]
[361254583,1747397436408,-151.0,0.00016438,2]
[361254584,1747397436418,-403.87382291,0.00016438,2]
[361254585,1747397436428,-400.0,0.00016438,2]
[361254586,1747397436438,-400.0,0.00016438,2]
[361254587,1747397436448,-1059.5,0.00016438,2]
[361254588,1747397436458,-400.0,0.00016438,2]
[361254589,1747397436468,-400.0,0.00016438,2]
[361254590,1747397436477,-1781.0,0.00016438,2]
[361254591,1747397436487,-169.78582685,0.00016438,2]
[361254592,1747397436498,-400.0,0.00016438,2]
[361254593,1747397436508,-400.0,0.00016438,2]
[361254594,1747397436518,-400.0,0.00016438,2]
[361254595,1747397436527,-1380.74,0.00016438,2]
[361254596,1747397436537,-582.81,0.00016438,2]
[361254597,1747397436550,-482.13,0.00016438,2]
[361254598,1747397436560,-1278.89,0.00016438,2]
[361254599,1747397436571,-400.0,0.00016438,2]
[361254600,1747397436582,-400.0,0.00016438,2]
[361254601,1747397436592,-1032.76,0.00016438,2]
[361254602,1747397436603,-400.0,0.00016438,2]
[361254603,1747397436612,-215.38126112,0.00016438,2]
[361254604,1747397436622,-400.0,0.00016438,2]
[361254605,1747397436632,-400.0,0.00016438,2]
[361254606,1747397436643,-400.0,0.00016438,2]
[361254607,1747397436653,-400.0,0.00016438,2]
[361254608,1747397436663,-400.0,0.00016438,2]
[361254609,1747397436673,-400.0,0.00016438,2]
[361254610,1747397436683,-400.0,0.00016438,2]
[361254611,1747397436693,-400.0,0.00016438,2]
[361254612,1747397436703,-400.0,0.00016438,2]
[361254613,1747397436715,-468.38,0.00016438,2]
[361254614,1747397436724,-400.0,0.00016438,2]
[361254615,1747397436734,-818.8,0.00016438,2]
[361254616,1747397436745,-1443.75,0.00016438,2]
[361254617,1747397436755,-400.0,0.00016438,2]
[361254618,1747397436765,-326.44761291,0.00016438,2]
[361254619,1747397436776,-400.0,0.00016438,2]
[361254620,1747397436786,-400.0,0.00016438,2]
[361254621,1747397436797,-400.0,0.00016438,2]
[361254622,1747397436811,-450.37,0.00016438,2]
[361254623,1747397436822,-400.0,0.00016438,2]
[361254624,1747397436831,-400.0,0.00016438,2]
[361254625,1747397436841,-400.0,0.00016438,2]
[361254626,1747397436850,-663.35,0.00016438,2]
[361254627,1747397436861,-749.84,0.00016438,2]
[361254628,1747397436872,-598.15,0.00016438,2]
[361254629,1747397436883,-153.25618141,0.00016438,2]
[361254630,1747397436893,-152.79110068,0.00016438,2]
[361254631,1747397436911,-400.0,0.00016438,2]
[361254632,1747397436931,-491.26,0.00016438,2]
[361254633,1747397436951,-400.0,0.00016438,2]
[361254634,1747397436970,-1718.09,0.00016438,2]
[361254635,1747397436981,-610.91,0.00016438,2]
[361254636,1747397436991,-400.0,0.00016438,2]
[361254637,1747397437001,-748.9,0.00016438,2]
[361254638,1747397437011,-400.0,0.00016438,2]
[361254639,1747397437021,-400.0,0.00016438,2]
[361254640,1747397437031,-400.0,0.00016438,2]
[361254641,1747397437041,-400.0,0.00016438,2]
[361254642,1747397437056,-150.0,0.00016438,2]
[361254643,1747397437066,-574.32,0.00016438,2]
[361254644,1747397437077,-296.4648479,0.00016438,2]
[361254645,1747397437087,-400.0,0.00016438,2]
[361254646,1747397437097,-565.5,0.00016438,2]
[361254647,1747397437107,-759.65,0.00016438,2]
[361254648,1747397437117,-973.82,0.00016438,2]
[361254649,1747397437127,-400.0,0.00016438,2]
[361254650,1747397437136,-708.15,0.00016438,2]
[361254651,1747397437146,-400.0,0.00016438,2]
[361254652,1747397437155,-400.0,0.00016438,2]
[361254653,1747397437164,-400.0,0.00016438,2]
[361254654,1747397437174,-400.0,0.00016438,2]
[361254655,1747397437184,-400.0,0.00016438,2]
[361254656,1747397437194,-180.37172191,0.00016438,2]
[361254657,1747397437203,-223.55844222,0.00016438,2]
[361254658,1747397437213,-409.52,0.00016438,2]
[361254659,1747397437222,-400.0,0.00016438,2]
[361254660,1747397437232,-400.0,0.00016438,2]
[361254661,1747397437241,-400.0,0.00016438,2]
[361254662,1747397437251,-400.0,0.00016438,2]
[361254663,1747397437260,-400.0,0.00016438,2]
[361254664,1747397437269,-1052.41,0.00016438,2]
[361254665,1747397437279,-1141.0,0.00016438,2]
[361254666,1747397437288,-400.0,0.00016438,2]
[361254667,1747397437298,-400.0,0.00016438,2]
[361254668,1747397437307,-400.0,0.00016438,2]
[361254669,1747397437317,-400.0,0.00016438,2]
[361254670,1747397437326,-400.0,0.00016438,2]
[361254671,1747397437336,-400.0,0.00016438,2]
[361254672,1747397437345,-400.0,0.00016438,2]
[361254673,1747397437355,-400.0,0.00016438,2]
[361254674,1747397437364,-400.0,0.00016438,2]
[361254675,1747397437374,-400.0,0.00016438,2]
[361254676,1747397437383,-400.0,0.00016438,2]
[361254677,1747397437393,-400.0,0.00016438,2]
[361254678,1747397437402,-573.54,0.00016438,2]
[361254679,1747397437411,-400.0,0.00016438,2]
[361254680,1747397437420,-400.0,0.00016438,2]
[361254681,1747397437430,-400.0,0.00016438,2]
[361254682,1747397437439,-400.0,0.00016438,2]
[361254683,1747397437448,-400.0,0.00016438,2]
[361254684,1747397437457,-678.05,0.00016438,2]
[361254685,1747397437467,-400.0,0.00016438,2]
[361254686,1747397437477,-400.0,0.00016438,2]
[361254687,1747397437487,-400.0,0.00016438,2]
[361254688,1747397437497,-1229.5,0.00016438,2]
[361254689,1747397437507,-152.73557463,0.00016438,2]
[361254690,1747397437517,-400.0,0.00016438,2]
[361254691,1747397437526,-658.08,0.00016438,2]
[361254692,1747397437535,-400.0,0.00016438,2]
[361254693,1747397437544,-443.58,0.00016438,2]
[361254694,1747397437555,-1056.36,0.00016438,2]
[361254695,1747397437564,-400.0,0.00016438,2]
[361254696,1747397437573,-151.0,0.00016438,2]
[361254697,1747397437582,-151.0,0.00016438,2]
[361254698,1747397437592,-434.07,0.00016438,2]
[361254699,1747397437601,-400.0,0.00016438,2]
[361254700,1747397437611,-400.0,0.00016438,2]
[361254701,1747397437620,-400.0,0.00016438,2]
[361254702,1747397437629,-382.339995,0.00016438,2]
[361254703,1747397437638,-400.0,0.00016438,2]
[361254705,1747397437648,-1215.27,0.00016438,2]
[361254706,1747397437658,-810.84,0.00016438,2]
[361254707,1747397437667,-400.0,0.00016438,2]
[361254708,1747397437677,-400.0,0.00016438,2]
[361254709,1747397437686,-611.96,0.00016438,2]
[361254710,1747397437695,-400.0,0.00016438,2]
[361254711,1747397437704,-400.0,0.00016438,2]
[361254712,1747397437714,-400.0,0.00016438,2]
[361254713,1747397437723,-1501.68,0.00016438,2]
[361254714,1747397437733,-409.99,0.00016438,2]
[361254715,1747397437743,-400.0,0.00016438,2]
[361254717,1747397437752,-400.0,0.00016438,2]
[361254718,1747397437761,-400.0,0.00016438,2]
[361254719,1747397437771,-400.0,0.00016438,2]
[361254720,1747397437780,-478.64276162,0.00016438,2]
[361254721,1747397437790,-400.0,0.00016438,2]
[361254723,1747397437800,-400.0,0.00016438,2]
[361254725,1747397437810,-400.0,0.00016438,2]
[361254727,1747397437819,-400.0,0.00016438,2]
[361254728,1747397437829,-400.0,0.00016438,2]
[361254729,1747397437839,-704.63,0.00016438,2]
[361254730,1747397437848,-400.0,0.00016438,2]
[361254731,1747397437858,-233.53765998,0.00016438,2]
[361254732,1747397437867,-482.39,0.00016438,2]
[361254733,1747397437877,-440.79,0.00016438,2]
[361254734,1747397437887,-400.0,0.00016438,2]
[361254735,1747397437897,-1111.13,0.00016438,2]
[361254736,1747397437907,-638.42,0.00016438,2]
[361254737,1747397437918,-400.0,0.00016438,2]
[361254738,1747397437935,-400.0,0.00016438,2]
[361254739,1747397437945,-400.0,0.00016438,2]
[361254740,1747397437955,-151.870292,0.00016438,2]
[361254741,1747397437966,-400.0,0.00016438,2]
[361254742,1747397437976,-400.0,0.00016438,2]
[361254743,1747397437986,-400.0,0.00016438,2]
[361254744,1747397437997,-400.0,0.00016438,2]
[361254745,1747397438006,-244.86751213,0.00016438,2]
[361254746,1747397438016,-400.0,0.00016438,2]
[361254747,1747397438026,-400.0,0.00016438,2]
[361254748,1747397438036,-1429.61,0.00016438,2]
[361254749,1747397438045,-400.0,0.00016438,2]
[361254750,1747397438056,-400.0,0.00016438,2]
[361254751,1747397438066,-400.0,0.00016438,2]
[361254752,1747397438075,-773.44,0.00016438,2]
[361254753,1747397438085,-400.0,0.00016438,2]
[361254754,1747397438095,-400.0,0.00016438,2]
[361254755,1747397438105,-400.0,0.00016438,2]
[361254756,1747397438114,-400.0,0.00016438,2]
[361254757,1747397438125,-400.0,0.00016438,2]
[361254758,1747397438135,-1907.21,0.00016438,2]
[361254759,1747397438145,-400.0,0.00016438,2]
[361254760,1747397438155,-400.0,0.00016438,2]
[361254761,1747397438164,-400.0,0.00016438,2]
[361254762,1747397438174,-400.0,0.00016438,2]
[361254763,1747397438184,-945.28,0.00016438,2]
[361254764,1747397438194,-400.0,0.00016438,2]
[361254765,1747397438204,-400.0,0.00016438,2]
[361254766,1747397438214,-400.0,0.00016438,2]
[361254767,1747397438224,-1471.88,0.00016438,2]
[361254768,1747397438235,-401.89913592,0.00016438,2]
[361254769,1747397438245,-812.3,0.00016438,2]
[361254770,1747397438255,-400.0,0.00016438,2]
[361254771,1747397438265,-400.0,0.00016438,2]
[361254772,1747397438274,-400.0,0.00016438,2]
[361254773,1747397438283,-400.0,0.00016438,2]
[361254774,1747397438292,-400.0,0.00016438,2]
[361254775,1747397438303,-400.0,0.00016438,2]
[361254776,1747397438313,-400.0,0.00016438,2]
[361254777,1747397438323,-1083.2,0.00016438,2]
[361254779,1747397438332,-390.50856111,0.00016438,2]
[361254781,1747397438342,-605.89,0.00016438,2]
[361254783,1747397438351,-400.0,0.00016438,2]
[361254784,1747397438361,-400.0,0.00016438,2]
[361254785,1747397438372,-611.42,0.00016438,2]
[361254786,1747397438381,-459.82095358,0.00016438,2]
[361254787,1747397438391,-815.0,0.00016438,2]
[361254788,1747397438400,-400.0,0.00016438,2]
[361254789,1747397438409,-400.0,0.00016438,2]
[361254790,1747397438418,-483.21,0.00016438,2]
[361254791,1747397438428,-400.0,0.00016438,2]
[361254792,1747397438438,-400.75901637,0.00016438,2]
[361254793,1747397438448,-315.04233198,0.00016438,2]
[361254794,1747397438458,-400.0,0.00016438,2]
[361254795,1747397438469,-400.0,0.00016438,2]
[361254796,1747397438479,-400.0,0.00016438,2]
[361254797,1747397438489,-419.02,0.00016438,2]
[361254798,1747397438499,-400.0,0.00016438,2]
[361254799,1747397438508,-545.07,0.00016438,2]
[361254800,1747397438518,-400.0,0.00016438,2]
[361254801,1747397438528,-687.11,0.00016438,2]
[361254802,1747397438538,-1040.88,0.00016438,2]
[361254803,1747397438548,-402.50156956,0.00016438,2]
[361254804,1747397438558,-400.0,0.00016438,2]
[361254805,1747397438567,-400.0,0.00016438,2]
[361254806,1747397438577,-400.0,0.00016438,2]
[361254807,1747397438586,-663.9,0.00016438,2]
[361254808,1747397438595,-274.52,0.00016438,2]
[361254809,1747397438604,-365.34577486,0.00016438,2]
[361254810,1747397438614,-400.0,0.00016438,2]
[361254811,1747397438624,-400.0,0.00016438,2]
[361254812,1747397438634,-409.56050034,0.00016438,2]
[361254813,1747397438643,-151.0,0.00016438,2]
[361254814,1747397438652,-488.83,0.00016438,2]
[361254815,1747397438662,-1518.56,0.00016438,2]
[361254816,1747397438671,-190.822302,0.00016438,2]
[361254817,1747397438681,-591.74,0.00016438,2]
[361254818,1747397438690,-400.0,0.00016438,2]
[361254819,1747397438700,-400.0,0.00016438,2]
[361254820,1747397438709,-188.722796,0.00016438,2]
[361254821,1747397438718,-601.85,0.00016438,2]
[361254822,1747397438728,-400.0,0.00016438,2]
[361254823,1747397438737,-400.0,0.00016438,2]
[361254824,1747397438747,-1198.71,0.00016438,2]
[361254825,1747397438755,-361.00641023,0.00016438,2]
[361254826,1747397438765,-656.9,0.00016438,2]
[361254827,1747397438775,-600.18,0.00016438,2]
[361254828,1747397438785,-400.0,0.00016438,2]
[361254829,1747397438794,-400.0,0.00016438,2]
[361254830,1747397438806,-400.0,0.00016438,2]
[361254831,1747397438816,-400.0,0.00016438,2]
[361254832,1747397438826,-400.0,0.00016438,2]
[361254833,1747397438836,-755.18,0.00016438,2]
[361254834,1747397438846,-400.0,0.00016438,2]
[361254835,1747397438856,-400.0,0.00016438,2]
[361254836,1747397438866,-400.0,0.00016438,2]
[361254837,1747397439178,-400.0,0.00016438,2]
[361254838,1747397439189,-400.0,0.00016438,2]
[361254839,1747397439200,-400.0,0.00016438,2]
[361254840,1747397439210,-507.11,0.00016438,2]
[361254841,1747397439220,-400.0,0.00016438,2]
[361254842,1747397439231,-476.45934874,0.00016438,2]
[361254843,1747397439242,-655.92,0.00016438,2]
[361254844,1747397439251,-400.0,0.00016438,2]
[361254845,1747397439261,-400.0,0.00016438,2]
[361254846,1747397439271,-1615.26,0.00016438,2]
[361254847,1747397439281,-400.0,0.00016438,2]
[361254848,1747397439290,-1489.77,0.00016438,2]
[361254849,1747397439300,-525.66,0.00016438,2]
[361254850,1747397439310,-400.0,0.00016438,2]
[361254851,1747397439320,-469.14827511,0.00016438,2]
[361254852,1747397439329,-400.0,0.00016438,2]
[361254853,1747397439339,-466.0,0.00016438,2]
[361254854,1747397439349,-400.0,0.00016438,2]
[361254855,1747397439359,-869.21,0.00016438,2]
[361254856,1747397439369,-401.16,0.00016438,2]
[361254857,1747397439379,-400.0,0.00016438,2]
[361254858,1747397439390,-400.0,0.00016438,2]
[361254859,1747397439399,-400.0,0.00016438,2]
[361254860,1747397439409,-400.0,0.00016438,2]
[361254861,1747397439419,-400.0,0.00016438,2]
[361254862,1747397439429,-400.0,0.00016438,2]
[361254863,1747397439439,-400.4300455,0.00016438,2]
[361254864,1747397439448,-993.26,0.00016438,2]
[361254865,1747397439458,-452.31,0.00016438,2]
[361254866,1747397439468,-400.0,0.00016438,2]
[361254867,1747397439478,-400.0,0.00016438,2]
[361254868,1747397439488,-442.06,0.00016438,2]
[361254869,1747397439499,-1236.97,0.00016438,2]
[361254870,1747397439509,-400.0,0.00016438,2]
[361254871,1747397439519,-1057.93,0.00016438,2]
[361254872,1747397439529,-420.84,0.00016438,2]
[361254873,1747397439539,-423.6,0.00016438,2]
[361254874,1747397439551,-500.0,0.00016438,2]
[361254875,1747397439560,-400.0,0.00016438,2]
[361254876,1747397439570,-477.80290469,0.00016438,2]
[361254878,1747397439579,-400.0,0.00016438,2]
[361254879,1747397439590,-400.0,0.00016438,2]
[361254880,1747397439600,-462.5,0.00016438,2]
[361254881,1747397439610,-400.0,0.00016438,2]
[361254882,1747397439620,-458.84,0.00016438,2]
[361254883,1747397439630,-421.35,0.00016438,2]
[361254885,1747397439639,-400.0,0.00016438,2]
[361254886,1747397439649,-400.0,0.00016438,2]
[361254887,1747397439659,-893.56,0.00016438,2]
[361254888,1747397439668,-734.91,0.00016438,2]
[361254889,1747397439678,-410.33,0.00016438,2]
[361254890,1747397439688,-1405.68,0.00016438,2]
[361254891,1747397439698,-400.0,0.00016438,2]
[361254892,1747397439708,-1045.04,0.00016438,2]
[361254893,1747397439718,-400.0,0.00016438,2]
[361254894,1747397439728,-433.76,0.00016438,2]
[361254896,1747397439738,-400.0,0.00016438,2]
[361254897,1747397439747,-400.0,0.00016438,2]
[361254898,1747397439758,-400.0,0.00016438,2]
[361254899,1747397439767,-400.0,0.00016438,2]
[361254900,1747397439776,-400.0,0.00016438,2]
[361254901,1747397439786,-400.0,0.00016438,2]
[361254902,1747397439796,-400.0,0.00016438,2]
[361254903,1747397439809,-1779.65,0.00016438,2]
[361254904,1747397439819,-2353.29,0.00016438,2]
[361254905,1747397439828,-400.0,0.00016438,2]
[361254906,1747397439838,-737.76,0.00016438,2]
[361254907,1747397439848,-400.0,0.00016438,2]
[361254908,1747397439858,-400.0,0.00016438,2]
[361254909,1747397439868,-400.0,0.00016438,2]
[361254910,1747397439878,-400.0,0.00016438,2]
[361254911,1747397439888,-400.0,0.00016438,2]
[361254912,1747397439898,-432.8,0.00016438,2]
[361254913,1747397439908,-422.2,0.00016438,2]
[361254914,1747397439918,-490.33,0.00016438,2]
[361254915,1747397439931,-400.0,0.00016438,2]
[361254916,1747397439941,-400.0,0.00016438,2]
[361254917,1747397439951,-400.0,0.00016438,2]
[361254918,1747397439960,-400.0,0.00016438,2]
[361254919,1747397439972,-400.0,0.00016438,2]
[361254920,1747397439982,-615.35,0.00016438,2]
[361254921,1747397439992,-400.0,0.00016438,2]
[361254922,1747397440004,-572.58,0.00016438,2]
[361254923,1747397440014,-400.0,0.00016438,2]
[361254924,1747397440024,-400.0,0.00016438,2]
[361254925,1747397440035,-381.46579322,0.00016438,2]
[361254926,1747397440045,-400.0,0.00016438,2]
[361254927,1747397440059,-1813.04,0.00016438,2]
[361254928,1747397440069,-400.0,0.00016438,2]
[361254929,1747397440079,-667.05,0.00016438,2]
[361254930,1747397440088,-400.0,0.00016438,2]
[361254931,1747397440098,-1220.34,0.00016438,2]
[361254932,1747397440108,-401.69558462,0.00016438,2]
[361254933,1747397440118,-400.0,0.00016438,2]
[361254934,1747397440128,-400.0,0.00016438,2]
[361254935,1747397440138,-400.0,0.00016438,2]
[361254936,1747397440148,-400.0,0.00016438,2]
[361254937,1747397440158,-400.0,0.00016438,2]
[361254938,1747397440168,-506.14,0.00016438,2]
[361254939,1747397440178,-865.87,0.00016438,2]
[361254940,1747397440188,-416.34,0.00016438,2]
[361254941,1747397440198,-400.0,0.00016438,2]
[361254942,1747397440208,-400.0,0.00016438,2]
[361254943,1747397440218,-400.0,0.00016438,2]
[361254944,1747397440229,-400.0,0.00016438,2]
[361254945,1747397440238,-400.0,0.00016438,2]
[361254946,1747397440248,-400.0,0.00016438,2]
[361254947,1747397440259,-1411.96,0.00016438,2]
[361254948,1747397440269,-828.84,0.00016438,2]
[361254949,1747397440279,-400.0,0.00016438,2]
[361254950,1747397440289,-400.0,0.00016438,2]
[361254951,1747397440301,-400.0,0.00016438,2]
[361254952,1747397440311,-400.0,0.00016438,2]
[361254953,1747397440320,-400.0,0.00016438,2]
[361254954,1747397440330,-400.0,0.00016438,2]
[361254955,1747397440340,-166.64892128,0.00016438,2]
[361254956,1747397440350,-400.0,0.00016438,2]
[361254957,1747397440360,-400.0,0.00016438,2]
[361254958,1747397440370,-400.0,0.00016438,2]
[361254959,1747397440379,-162.929641,0.00016438,2]
[361254960,1747397440389,-400.0,0.00016438,2]
[361254961,1747397440399,-400.0,0.00016438,2]
[361254962,1747397440409,-495.8577143,0.00016438,2]
[361254963,1747397440419,-400.0,0.00016438,2]
[361254964,1747397440429,-400.0,0.00016438,2]
[361254965,1747397440439,-400.0,0.00016438,2]
[361254966,1747397440450,-1749.1,0.00016438,2]
[361254967,1747397440460,-400.0,0.00016438,2]
[361254968,1747397440470,-400.0,0.00016438,2]
[361254969,1747397440481,-663.36,0.00016438,2]
[361254970,1747397440491,-400.0,0.00016438,2]
[361254971,1747397440501,-874.78,0.00016438,2]
[361254972,1747397440513,-1305.04,0.00016438,2]
[361254973,1747397440523,-400.0,0.00016438,2]
[361254974,1747397440533,-400.0,0.00016438,2]
[361254975,1747397440542,-400.0,0.00016438,2]
[361254976,1747397440553,-1634.83,0.00016438,2]
[361254977,1747397440563,-400.0,0.00016438,2]
[361254978,1747397440572,-419.59,0.00016438,2]
[361254979,1747397440581,-400.0,0.00016438,2]
[361254980,1747397440591,-400.0,0.00016438,2]
[361254981,1747397440600,-184.7865974,0.00016438,2]
[361254982,1747397440610,-400.0,0.00016438,2]
[361254983,1747397440619,-400.0,0.00016438,2]
[361254984,1747397440628,-400.0,0.00016438,2]
[361254985,1747397440638,-763.44,0.00016438,2]
[361254986,1747397440648,-409.09,0.00016438,2]
[361254987,1747397440657,-400.0,0.00016438,2]
[361254988,1747397440667,-400.0,0.00016438,2]
[361254989,1747397440676,-400.0,0.00016438,2]
[361254990,1747397440685,-546.36,0.00016438,2]
[361254991,1747397440695,-400.0,0.00016438,2]